bitfinex-derivatives/quotes_BNBF0:USTF0_20250111
["timestamp","ask_amount","ask_price","bid_price","bid_amount"]
[1736554693594,1.87592332,692.49,690.86,0.28949425]
[1736554693999,0.79784356,692.48,690.86,0.28949425]
[1736554694601,0.79784356,692.47,690.86,0.28949425]
[1736554695002,0.79784356,692.46,690.86,0.28949425]
[1736554695499,0.79784356,692.48,690.86,0.28949425]
[1736554696004,0.79784356,692.47,690.86,0.28949425]
[1736554696404,0.79784356,692.46,690.86,0.28949425]
[1736554696705,0.79784356,692.45,690.86,0.28949425]
[1736554697299,0.79784356,692.44,690.86,0.28949425]
[1736554698006,0.79784356,692.43,690.86,0.28949425]
[1736554698406,0.79778693,692.42,690.86,0.28949425]
[1736554698798,1.07807976,692.52,690.86,0.28949425]
[1736554699203,1.07807976,692.51,690.86,0.28949425]
[1736554699400,1.8758359,692.51,690.86,0.28949425]
[1736554699902,1.07807976,692.48,690.86,0.28949425]
[1736554700504,1.07807976,692.45,690.86,2.49371458]
[1736554701207,0.79775614,692.44,690.89,2.20422033]
[1736554701404,0.79775614,692.44,690.91,0.2894733]
[1736554701608,1.07807976,692.49,690.91,0.2894733]
[1736554701807,0.79767017,692.48,690.91,0.2894733]
[1736554702213,1.87574993,692.48,690.91,0.2894733]
[1736554702409,0.79767017,692.47,690.91,0.2894733]
[1736554702808,0.79767017,692.46,690.91,0.2894733]
[1736554703311,0.79767017,692.45,690.91,0.2894733]
[1736554703715,0.79767017,692.45,690.91,2.49369363]
[1736554704013,1.07807976,692.46,690.91,2.49369363]
[1736554704414,1.07807976,692.46,690.91,0.2894733]
[1736554704713,1.07807976,692.57,690.91,0.2894733]
[1736554704914,0.79754986,692.56,690.91,0.2894733]
[1736554705114,1.07807976,692.55,690.91,0.2894733]
[1736554705316,0.79754986,692.54,690.91,0.2894733]
[1736554706010,0.79754986,692.53,690.91,0.2894733]
[1736554706610,0.79754986,692.52,690.91,0.2894733]
[1736554707411,0.79754986,692.51,690.91,0.2894733]
[1736554707809,0.79754986,692.5,690.91,0.2894733]
[1736554708409,0.79754986,692.49,690.91,0.2894733]
[1736554708615,0.79754986,692.48,690.91,0.2894733]
[1736554709214,0.79754986,692.47,690.91,0.2894733]
[1736554709611,0.79754986,692.46,690.91,0.2894733]
[1736554710718,0.79754986,692.45,690.91,0.2894733]
[1736554711219,0.79754986,692.44,690.91,0.2894733]
[1736554711719,0.79754986,692.43,690.91,0.2894733]
[1736554712318,1.07807976,692.51,690.91,0.2894733]
[1736554713220,0.79739632,692.5,690.91,0.2894733]
[1736554713618,0.79739632,692.49,690.91,0.2894733]
[1736554713914,0.79739632,692.48,690.91,0.2894733]
[1736554714419,0.79739632,692.47,690.91,0.2894733]
[1736554714816,0.79739632,692.49,690.91,0.2894733]
[1736554715015,1.07807976,692.4,690.93,2.20422033]
[1736554715819,1.07807976,692.4,690.95,0.28945654]
[1736554716221,1.07807976,692.35,691.06,2.20422033]
[1736554716413,1.07807976,692.35,691.07,0.28940628]
[1736554717423,1.07807976,692.34,691.07,2.49362661]
[1736554718518,1.07807976,692.34,691.07,0.28940628]
[1736554719322,1.07807976,692.36,691.07,0.28940628]
[1736554720223,1.07807976,692.55,691.07,0.28940628]
[1736554720224,1.07807976,692.35,691.07,0.28940628]
[1736554721427,0.79755245,692.34,691.07,0.28940628]
[1736554721927,0.79755245,692.33,691.07,0.28940628]
[1736554722227,1.07807976,692.31,691.07,0.28940628]
[1736554723228,1.87574293,692.3,691.07,0.28940628]
[1736554723624,1.07807976,692.3,691.07,0.28940628]
[1736554724224,1.07807976,692.33,691.07,0.28940628]
[1736554724626,0.79793037,692.32,691.07,0.28940628]
[1736554725025,0.79793037,692.31,691.07,0.28940628]
[1736554725627,0.79793037,692.3,691.07,0.28940628]
[1736554726027,0.79793037,692.33,691.07,0.28940628]
[1736554726423,0.79793037,692.32,691.07,0.28940628]
[1736554727431,0.79793037,692.31,691.07,0.28940628]
[1736554727930,0.79793037,692.35,691.07,0.28940628]
[1736554728528,0.79793037,692.34,691.07,0.28940628]
[1736554728929,0.79793037,692.33,691.07,0.28940628]
[1736554729634,0.79793037,692.32,691.07,0.28940628]
[1736554730135,0.28876279,692.61,691.07,0.28940628]
[1736554730136,0.79793037,692.31,691.07,0.28940628]
[1736554730635,0.79793037,692.3,691.07,0.28940628]
[1736554731634,0.79793037,692.29,691.07,0.28940628]
[1736554732236,0.79793037,692.28,691.07,0.28940628]
[1736554733139,0.79793037,692.51,691.07,0.28940628]
[1736554733438,1.87601013,692.51,691.07,0.28940628]
[1736554733642,0.79793037,692.5,691.07,0.28940628]
[1736554733941,1.07807976,692.51,691.07,0.28940628]
[1736554733942,0.79793037,692.49,691.07,0.28940628]
[1736554734534,0.79793037,692.48,691.07,0.28940628]
[1736554735541,0.79793037,692.47,691.07,0.28940628]
[1736554735842,0.79793037,692.46,691.07,0.28940628]
[1736554736041,0.79793037,692.45,691.07,0.28940628]
[1736554736443,0.79793037,692.44,691.07,0.28940628]
[1736554736938,0.79793037,692.43,691.07,0.28940628]
[1736554737346,0.79793037,692.42,691.07,0.28940628]
[1736554738143,0.79793037,692.41,691.07,0.28940628]
[1736554738743,0.79793037,692.4,691.07,0.28940628]
[1736554739242,0.79793037,692.39,691.07,0.28940628]
[1736554739842,0.79793037,692.38,691.07,0.28940628]
[1736554740440,0.79793037,692.37,691.07,0.28940628]
[1736554740845,1.07807976,692.42,691.07,0.28940628]
[1736554741044,0.79792934,692.36,691.07,0.28940628]
[1736554741345,0.79792934,692.35,691.07,0.28940628]
[1736554741946,0.79792934,692.34,691.07,0.28940628]
[1736554742549,0.79792934,692.33,691.07,0.28940628]
[1736554743049,0.79792934,692.32,691.07,0.28940628]
[1736554743746,0.79792934,692.31,691.07,0.28940628]
[1736554744249,0.79792934,692.3,691.07,0.28940628]
[1736554744941,0.79792934,692.29,691.07,0.28940628]
[1736554745347,0.79792934,692.28,691.07,0.28940628]
[1736554745947,0.79792934,692.27,691.07,0.28940628]
[1736554746344,0.79792934,692.26,691.07,0.28940628]
[1736554747047,0.79792934,692.25,691.07,0.28940628]
[1736554747642,0.79792934,692.24,691.07,0.28940628]
[1736554748546,0.79792934,692.23,691.07,0.28940628]
[1736554749145,0.79792934,692.22,691.07,0.28940628]
[1736554749753,1.07807976,692.35,691.07,0.28940628]
[1736554750351,1.07807976,692.34,691.07,0.28940628]
[1736554750552,1.87490951,692.34,691.07,0.28940628]
[1736554750953,0.79682975,692.33,691.07,0.28940628]
[1736554751148,1.07807976,692.34,691.07,0.28940628]
[1736554751149,0.79682975,692.32,691.07,0.28940628]
[1736554751752,0.79682975,692.31,691.07,0.28940628]
[1736554752854,0.79682975,692.3,691.07,0.28940628]
[1736554753658,0.79682975,692.29,691.07,0.28940628]
[1736554754155,0.79682975,692.28,691.07,0.28940628]
[1736554754558,1.07807976,692.3,691.07,0.28940628]
[1736554754559,0.79682975,692.27,691.07,0.28940628]
[1736554755050,0.79682975,692.26,691.07,0.28940628]
[1736554755555,0.79682975,692.25,691.07,0.28940628]
[1736554755949,0.79682975,692.24,691.07,0.28940628]
[1736554756557,0.79682975,692.23,691.07,0.28940628]
[1736554757156,0.79682975,692.22,691.07,0.28940628]
[1736554757756,0.28876279,692.61,691.07,0.28940628]
[1736554757757,0.79682975,692.21,691.07,0.28940628]
[1736554758153,0.79682975,692.2,691.07,0.28940628]
[1736554758657,0.79682975,692.19,691.07,0.28940628]
[1736554758858,1.07807976,692.32,691.07,0.28940628]
[1736554759255,1.07807976,692.34,691.07,0.28940628]
[1736554759457,0.79586486,692.31,691.07,0.28940628]
[1736554760253,0.79587366,692.3,691.07,0.28940628]
[1736554760659,0.79587366,692.29,691.07,0.28940628]
[1736554761062,0.79587366,692.28,691.07,0.28940628]
[1736554761660,0.79587366,692.27,691.07,0.28940628]
[1736554762259,0.79587366,692.26,691.07,0.28940628]
[1736554762654,0.79587366,692.25,691.07,0.28940628]
[1736554763060,0.79587366,692.24,691.07,0.28940628]
[1736554763660,0.79587366,692.23,691.07,0.28940628]
[1736554764460,0.79587366,692.22,691.07,0.28940628]
[1736554764860,0.79587366,692.21,691.07,0.28940628]
[1736554765355,0.79587366,692.2,691.07,0.28940628]
[1736554765860,0.79587366,692.19,691.07,0.28940628]
[1736554766462,1.07807976,692.55,691.07,0.28940628]
[1736554766656,0.28879198,692.54,691.07,0.28940628]
[1736554767063,0.7957865,692.53,691.07,0.28940628]
[1736554767362,1.08458682,692.52,691.07,0.28940628]
[1736554767562,0.28880866,692.5,691.07,0.28940628]
[1736554767765,0.26559754,692.49,689.85,2.20422033]
[1736554767964,0.28882117,692.47,689.98,0.28986347]
[1736554768166,1.06138603,692.46,689.98,0.28986347]
[1736554768363,0.28883368,692.44,689.98,0.28986347]
[1736554768564,0.7957865,692.43,689.98,0.28986347]
[1736554768767,1.07807976,692.22,690.08,2.20422033]
[1736554768966,1.08471616,692.21,690.18,0.28977947]
[1736554769159,0.28893383,692.2,690.18,0.28977947]
[1736554769365,1.08472033,692.2,690.18,0.28977947]
[1736554769963,0.7957865,692.19,690.18,0.28977947]
[1736554770160,0.28894218,692.18,690.18,0.28977947]
[1736554770365,0.7957865,692.17,690.18,0.28977947]
[1736554770561,0.28895053,692.16,690.18,0.28977947]
[1736554770762,1.08473703,692.16,690.18,0.28977947]
[1736554771066,0.7957865,692.15,690.18,0.28977947]
[1736554771268,0.28895888,692.14,690.18,0.28977947]
[1736554771967,0.7957865,692.13,690.18,0.28977947]
[1736554772167,1.08475373,692.12,690.18,0.28977947]
[1736554772466,0.2889714,692.11,690.18,0.28977947]
[1736554772767,0.7957865,692.1,690.18,0.28977947]
[1736554773165,0.28897975,692.09,690.18,0.28977947]
[1736554773360,0.7957865,692.08,690.18,0.28977947]
[1736554773565,0.2889881,692.07,690.18,0.28977947]
[1736554773861,0.7957865,692.06,690.18,0.28977947]
[1736554774264,0.7957865,692.05,690.18,0.28977947]
[1736554774766,0.7957865,692.04,690.18,0.28977947]
[1736554775364,0.7957865,692.03,690.18,0.28977947]
[1736554775868,0.2889881,692.07,690.18,0.28977947]
[1736554776468,0.79400473,692.06,690.18,0.28977947]
[1736554777066,0.79400473,692.05,690.18,0.28977947]
[1736554777569,0.79400473,692.04,690.18,0.28977947]
[1736554778172,0.2889881,692.07,690.18,0.28977947]
[1736554788067,0.2889881,692.07,690.24,2.20422033]
[1736554788270,0.2889881,692.07,690.26,0.28974589]
[1736554790174,0.2889881,692.07,690.28,2.20422033]
[1736554790376,0.2889881,692.07,690.3,0.2897291]
[1736554796182,0.2889881,692.07,690.33,2.20422033]
[1736554796683,0.2889881,692.07,690.35,0.28970811]
[1736554798285,0.2889881,692.07,690.35,2.49392844]
[1736554799982,0.2889881,692.07,690.35,0.28970811]
[1736554803490,0.79517413,692.06,690.35,0.28970811]
[1736554804188,0.79517413,692.05,690.35,0.28970811]
[1736554804895,0.79517413,692.04,690.35,0.28970811]
[1736554805097,0.79517413,692.03,690.35,0.28970811]
[1736554805597,0.79517413,692.02,690.35,0.28970811]
[1736554806399,0.79517413,692.06,690.35,0.28970811]
[1736554806598,0.28899645,692.05,690.35,0.28970811]
[1736554807199,0.79517413,692.04,690.35,0.28970811]
[1736554807794,0.79517413,692.03,690.35,0.28970811]
[1736554808196,0.79517413,692.04,690.35,0.28970811]
[1736554808795,0.79517413,692.03,690.35,0.28970811]
[1736554809195,0.28899645,692.05,690.35,0.28970811]
[1736554809196,0.79517413,692.04,690.35,0.28970811]
[1736554821305,0.79517413,692.04,690.35,2.49392844]
[1736554822205,0.28900481,692.03,690.35,2.49392844]
[1736554822704,0.79517413,692.02,690.35,2.49392844]
[1736554823405,0.28901316,692.01,690.35,0.28970811]
[1736554823599,0.79517413,692.0,690.35,0.28970811]
[1736554824207,1.08419147,692.0,690.35,0.28970811]
[1736554824805,0.79517413,691.99,690.35,0.28970811]
[1736554825602,0.79517413,691.99,690.35,2.49392844]
[1736554826307,0.79517413,691.99,690.36,2.20422033]
[1736554826502,0.79517413,691.99,690.37,0.28969972]
[1736554827300,0.79517413,691.99,690.38,2.20422033]
[1736554827505,0.79517413,691.99,690.39,0.28969133]
[1736554828307,0.79517413,691.99,690.42,2.20422033]
[1736554828508,0.79517413,691.99,690.43,0.28967455]
[1736554829301,1.87325389,691.99,690.43,0.28967455]
[1736554829703,0.79517413,691.98,690.43,0.28967455]
[1736554830109,1.87325389,691.98,690.43,0.28967455]
[1736554830508,0.79517413,691.97,690.43,0.28967455]
[1736554830912,1.07807976,691.96,690.43,2.49389488]
[1736554831811,0.79517413,691.95,690.43,2.49389488]
[1736554832011,0.79517413,691.95,690.43,0.28967455]
[1736554832406,0.79517413,691.96,690.43,0.28967455]
[1736554833607,0.79517413,691.97,690.43,0.28967455]
[1736554834010,1.084204,691.97,690.43,0.28967455]
[1736554834215,2.16228376,691.97,690.43,0.28967455]
[1736554834414,0.79517413,691.96,690.43,0.28967455]
[1736554834611,0.28903822,691.95,690.43,0.28967455]
[1736554835011,0.79517413,691.94,690.43,0.28967455]
[1736554835209,0.28904657,691.93,690.43,0.28967455]
[1736554835712,0.79517413,691.92,690.43,0.28967455]
[1736554835912,1.08422906,691.91,690.43,0.28967455]
[1736554836111,0.28905911,691.9,690.43,0.28967455]
[1736554836615,0.79517413,691.89,690.43,0.28967455]
[1736554839617,1.08423742,691.89,690.43,0.28967455]
[1736554840120,0.79517413,691.88,690.43,0.28967455]
[1736554845822,1.36714305,691.89,690.43,0.28967455]
[1736554846020,0.28906329,691.89,690.43,0.28967455]
[1736554858427,1.07807976,692.41,690.43,0.28967455]
[1736554858628,1.08526267,692.4,690.43,0.28967455]
[1736554859028,0.28885454,692.39,690.43,0.28967455]
[1736554859426,0.7964123,692.38,690.43,0.28967455]
[1736554859627,0.28886289,692.37,690.43,0.28967455]
[1736554859832,0.7964123,692.36,690.43,0.28967455]
[1736554860030,0.28887123,692.35,690.43,0.28967455]
[1736554860431,0.7964123,692.34,690.43,0.28967455]
[1736554860631,0.28887958,692.33,690.43,0.28967455]
[1736554861136,0.7964123,692.32,690.43,0.28967455]
[1736554861528,1.08530022,692.31,690.43,0.28967455]
[1736554861733,1.08530439,692.3,690.43,0.28967455]
[1736554862236,1.08530857,692.29,690.43,0.28967455]
[1736554863136,0.7964123,692.28,690.43,0.28967455]
[1736554863630,0.7964123,692.27,690.43,0.28967455]
[1736554863831,0.7964123,692.26,690.43,0.28967455]
[1736554864436,0.7964123,692.25,690.43,0.28967455]
[1736554864938,0.7964123,692.24,690.43,0.28967455]
[1736554865334,0.7964123,692.23,690.43,0.28967455]
[1736554866037,0.28889627,692.29,690.43,0.28967455]
[1736554866936,0.7955881,692.28,690.43,0.28967455]
[1736554867237,0.7955881,692.27,690.43,0.28967455]
[1736554867639,0.7955881,692.26,690.43,0.28967455]
[1736554868136,0.7955881,692.25,690.43,0.28967455]
[1736554868535,0.7955881,692.24,690.43,0.28967455]
[1736554869439,0.28889627,692.29,690.43,0.28967455]
[1736554869639,0.79520698,692.28,690.43,0.28967455]
[1736554870237,0.79520698,692.27,690.43,0.28967455]
[1736554870540,0.79520698,692.28,690.43,0.28967455]
[1736554870739,0.28889627,692.29,690.43,0.28967455]
[1736554870740,0.79520698,692.27,690.43,0.28967455]
[1736554871339,0.79520698,692.26,690.43,0.28967455]
[1736554872036,0.79520698,692.25,690.43,0.28967455]
[1736554872440,0.79520698,692.24,690.43,0.28967455]
[1736554872835,0.79520698,692.23,690.43,0.28967455]
[1736554873236,0.28889627,692.29,690.43,0.28967455]
[1736554873636,0.79484709,692.28,690.43,0.28967455]
[1736554874441,0.79484709,692.27,690.43,0.28967455]
[1736554874935,0.79484709,692.26,690.43,0.28967455]
[1736554875440,0.79484709,692.25,690.43,0.28967455]
[1736554876036,0.79484709,692.24,690.43,0.28967455]
[1736554876234,1.08376422,692.24,690.43,0.28967455]
[1736554876437,0.79484709,692.23,690.43,0.28967455]
[1736554876637,1.08377257,692.22,690.43,0.28967455]
[1736554876838,0.28892966,692.21,690.43,0.28967455]
[1736554877243,0.79484709,692.2,690.43,0.28967455]
[1736554877442,0.288938,692.19,690.43,0.28967455]
[1736554877844,0.79484709,692.18,690.43,0.28967455]
[1736554878546,1.08379344,692.17,690.43,0.28967455]
[1736554878743,0.28895053,692.16,690.43,0.28967455]
[1736554879045,1.08379762,692.16,690.43,0.28967455]
[1736554879247,0.28895053,692.16,690.43,0.28967455]
[1736554880649,0.79446342,692.15,690.43,0.28967455]
[1736554880850,0.28895888,692.14,690.43,0.28967455]
[1736554884452,0.28895888,692.14,690.44,2.20422033]
[1736554884848,0.28895888,692.14,690.46,0.28966196]
[1736554885152,0.79445548,692.13,690.46,0.28966196]
[1736554885548,0.28896723,692.12,690.46,0.28966196]
[1736554886147,0.79445089,692.11,690.46,0.28966196]
[1736554886750,0.28896723,692.12,690.46,0.28966196]
[1736554887854,0.79446894,692.11,690.46,0.28966196]
[1736554888051,0.28896723,692.12,690.46,0.28966196]
[1736554890951,0.79448856,692.11,690.46,0.28966196]
[1736554891257,1.08346414,692.1,690.46,0.28966196]
[1736554891558,0.28897975,692.09,690.46,0.28966196]
[1736554891958,0.79448856,692.08,690.46,0.28966196]
[1736554892158,0.2889881,692.07,690.46,0.28966196]
[1736554892356,0.79448856,692.06,690.46,0.28966196]
[1736554892657,0.28899645,692.05,690.46,0.28966196]
[1736554894958,0.79477376,692.04,690.46,0.28966196]
[1736554895553,0.28899645,692.05,690.46,0.28966196]
[1736554896359,0.79484674,692.04,690.46,0.28966196]
[1736554897355,0.28899645,692.05,690.46,0.28966196]
[1736554898763,0.79521829,692.04,690.46,0.28966196]
[1736554899158,0.79521829,692.03,690.46,0.28966196]
[1736554899761,0.28899645,692.05,690.46,0.28966196]
[1736554900164,0.79545071,692.04,690.46,0.28966196]
[1736554900761,0.79545071,692.03,690.46,0.28966196]
[1736554901068,0.79545071,692.04,690.46,0.28966196]
[1736554903666,1.08445134,692.04,690.46,0.28966196]
[1736554903970,0.79545071,692.03,690.46,0.28966196]
[1736554908468,1.86916325,692.03,690.46,0.28966196]
[1736554908875,0.79545071,692.02,690.46,0.28966196]
[1736554909578,1.86916325,692.02,690.46,0.28966196]
[1736554909975,0.79545071,692.01,690.46,0.28966196]
[1736554911091,0.79545071,692.03,690.46,0.28966196]
[1736554911577,1.07371254,691.99,690.48,2.20614163]
[1736554911776,1.07371254,691.99,690.49,0.28964937]
[1736554912679,1.07371254,691.99,690.49,2.495791]
[1736554913372,1.07371254,691.98,690.49,2.495791]
[1736554914976,1.87005094,691.97,690.51,2.20614163]
[1736554915378,0.7963384,691.96,690.51,2.20614163]
[1736554915573,1.07371254,691.95,690.49,0.28964937]
[1736554916976,1.07371254,691.94,690.49,0.28964937]
[1736554918079,1.07371254,691.92,690.49,0.28964937]
[1736554918879,1.07371254,691.95,690.52,2.20614163]
[1736554919179,1.07371254,691.95,690.53,0.2896326]
[1736554920580,1.07371254,691.96,690.53,0.2896326]
[1736554922676,1.07371254,691.95,690.53,0.2896326]
[1736554923482,1.07371254,691.94,690.53,0.2896326]
[1736554923684,1.87080751,691.94,690.53,0.2896326]
[1736554924079,1.07371254,691.94,690.53,0.2896326]
[1736554924786,1.07371254,691.91,690.53,0.2896326]
[1736554925781,1.07371254,691.88,690.54,2.20614163]
[1736554925985,1.07371254,691.88,690.55,0.28962421]
[1736554927587,1.07371254,691.89,690.55,2.49576584]
[1736554929588,0.28900063,692.04,690.55,2.49576584]
[1736554929589,1.07371254,691.88,690.58,2.20614163]
[1736554930289,1.07371254,691.86,690.58,2.20614163]
[1736554930491,1.07371254,691.86,690.55,0.28962421]
[1736554930492,1.07371254,691.86,690.59,2.20614163]
[1736554932791,1.07371254,691.86,690.58,2.20614163]
[1736554933793,1.87175007,691.85,690.55,0.28962421]
[1736554934293,0.79803753,691.84,690.55,0.28962421]
[1736554935494,0.79803753,691.9,690.55,0.28962421]
[1736554935794,0.79803753,691.89,690.55,0.28962421]
[1736554936393,0.79803753,691.88,690.55,0.28962421]
[1736554936995,0.79803753,691.87,690.55,0.28962421]
[1736554937892,0.79803753,691.86,690.55,0.28962421]
[1736554938296,0.79803753,691.85,690.55,0.28962421]
[1736554938692,0.79803753,691.91,690.55,0.28962421]
[1736554939097,0.79803753,691.9,690.55,0.28962421]
[1736554939794,0.79803753,691.89,690.55,0.28962421]
[1736554940402,0.79803753,691.88,690.55,0.28962421]
[1736554941095,0.79803753,691.87,690.55,0.28962421]
[1736554941297,0.79803753,691.86,690.55,0.28962421]
[1736554941802,0.79803753,691.85,690.55,0.28962421]
[1736554942402,0.79803753,691.84,690.55,0.28962421]
[1736554942801,0.79803753,691.83,690.55,0.28962421]
[1736554943405,0.79803753,691.82,690.55,0.28962421]
[1736554944099,0.79803753,691.81,690.55,0.28962421]
[1736554944701,0.79803753,691.8,690.55,0.28962421]
[1736554945306,0.79803753,691.79,690.55,0.28962421]
[1736554945904,0.79803753,691.78,690.55,0.28962421]
[1736554946100,0.79803753,691.77,690.55,0.28962421]
[1736554946501,1.07371254,692.02,690.55,0.28962421]
[1736554946805,0.28901316,692.01,690.55,0.28962421]
[1736554947205,0.7973616,692.0,690.55,0.28962421]
[1736554947405,0.28902151,691.99,690.55,0.28962421]
[1736554947905,0.7973616,691.98,690.55,0.28962421]
[1736554948107,0.28902987,691.97,690.55,0.28962421]
[1736554948307,1.08639147,691.97,690.55,0.28962421]
[1736554948807,0.7973616,691.96,690.55,0.28962421]
[1736554949008,0.28903822,691.95,690.55,0.28962421]
[1736554949204,0.7973616,691.94,690.55,0.28962421]
[1736554949401,0.28904657,691.93,690.55,0.28962421]
[1736554949807,0.7973616,691.92,690.55,0.28962421]
[1736554950108,0.28905493,691.91,690.55,0.28962421]
[1736554950503,0.7973616,691.9,690.55,0.28962421]
[1736554950705,0.28906329,691.89,690.55,0.28962421]
[1736554950909,0.7973616,691.88,690.55,0.28962421]
[1736554951108,0.28906329,691.89,690.55,0.28962421]
[1736554951109,0.7973616,691.87,690.55,0.28962421]
[1736554951509,0.7973616,691.86,690.55,0.28962421]
[1736554951907,0.7973616,691.85,690.55,0.28962421]
[1736554952308,0.7973616,691.84,690.55,0.28962421]
[1736554953009,0.7973616,691.83,690.55,0.28962421]
[1736554953403,0.7973616,691.82,690.55,0.28962421]
[1736554953908,0.7973616,691.81,690.55,0.28962421]
[1736554954311,0.28906329,691.89,690.55,0.28962421]
[1736554954810,0.79715414,691.88,690.55,0.28962421]
[1736554955010,1.07371254,691.87,690.55,0.28962421]
[1736554955210,1.87086668,691.87,690.55,0.28962421]
[1736554955711,0.79715414,691.86,690.55,0.28962421]
[1736554956207,0.79715414,691.88,690.55,0.28962421]
[1736554956612,0.79715414,691.87,690.55,0.28962421]
[1736554957213,0.79715414,691.86,690.55,0.28962421]
[1736554957714,0.28906329,691.89,690.55,0.28962421]
[1736554957715,0.79715414,691.85,690.55,0.28962421]
[1736554958008,0.79715414,691.84,690.55,0.28962421]
[1736554958413,0.79715414,691.83,690.55,0.28962421]
[1736554959108,0.79715414,691.82,690.55,0.28962421]
[1736554959711,0.79715414,691.81,690.55,0.28962421]
[1736554960410,0.28906329,691.89,690.55,0.28962421]
[1736554960716,0.79708924,691.88,690.55,0.28962421]
[1736554961214,0.79708924,691.87,690.55,0.28962421]
[1736554961713,0.79708924,691.88,690.55,0.28962421]
[1736554962116,0.79708924,691.87,690.55,0.28962421]
[1736554962514,0.79708924,691.88,690.55,0.28962421]
[1736554962912,0.79708924,691.87,690.55,0.28962421]
[1736554963517,0.79708924,691.88,690.55,0.28962421]
[1736554963912,0.79708924,691.87,690.55,0.28962421]
[1736554964518,0.79708924,691.88,690.55,0.28962421]
[1736554965212,0.79708924,691.87,690.55,0.28962421]
[1736554965618,0.79708924,691.86,690.55,0.28962421]
[1736554966215,0.28906329,691.89,690.55,0.28962421]
[1736554966411,0.79707056,691.85,690.55,0.28962421]
[1736554966820,1.07371254,691.86,690.55,0.28962421]
[1736554967318,0.28906329,691.89,690.55,0.28962421]
[1736554967319,1.07371254,691.83,690.55,0.28962421]
[1736554969123,1.07371254,691.82,690.55,0.28962421]
[1736554970121,1.07371254,691.83,690.55,0.28962421]
[1736554971522,1.07371254,691.84,690.55,0.28962421]
[1736554973723,0.28906329,691.89,690.55,0.28962421]
[1736554974219,0.79743368,691.88,690.55,0.28962421]
[1736554974624,0.28906329,691.89,690.55,0.28962421]
[1736554977324,0.79756579,691.88,690.55,0.28962421]
[1736554977720,0.28906329,691.89,690.55,0.28962421]
[1736554978620,0.79765303,691.88,690.55,0.28962421]
[1736554979023,0.79765303,691.87,690.55,0.28962421]
[1736554979727,0.79765303,691.86,690.55,0.28962421]
[1736554980324,0.79765303,691.85,690.55,0.28962421]
[1736554980619,0.79765303,691.84,690.55,0.28962421]
[1736554981240,0.79765303,691.83,690.55,0.28962421]
[1736554982926,0.79765303,691.84,690.55,0.28962421]
[1736554983124,0.79765303,691.83,690.55,0.28962421]
[1736554983528,1.87136557,691.84,690.55,0.28962421]
[1736554983923,0.79765303,691.83,690.55,0.28962421]
[1736554984828,1.87136557,691.83,690.55,0.28962421]
[1736554985330,0.79765303,691.82,690.55,0.28962421]
[1736554986230,0.79765303,691.84,690.55,0.28962421]
[1736554986528,1.87136557,691.84,690.55,0.28962421]
[1736554986928,0.79765303,691.83,690.55,0.28962421]
[1736554987327,0.79765303,691.82,690.55,0.28962421]
[1736554987534,1.07371254,691.8,690.55,0.28962421]
[1736554988132,0.79765303,691.79,690.55,0.28962421]
[1736554988334,1.07371254,691.77,690.55,0.28962421]
[1736554988732,0.79765303,691.76,690.55,0.28962421]
[1736554989132,0.79765303,691.75,690.55,0.28962421]
[1736554989531,0.79765303,691.74,690.55,0.28962421]
[1736554989932,0.79765303,691.73,690.55,0.28962421]
[1736554990732,0.79765303,691.72,690.55,0.28962421]
[1736554991332,0.79765303,691.71,690.55,0.28962421]
[1736554991936,0.79765303,691.7,690.55,0.28962421]
[1736554992440,1.07371254,691.83,690.55,0.28962421]
[1736554992833,0.79748755,691.82,690.55,0.28962421]
[1736554993034,1.87120009,691.82,690.55,0.28962421]
[1736554993433,0.79748755,691.81,690.55,0.28962421]
[1736554993833,0.79748755,691.8,690.55,0.28962421]
[1736554994638,1.07371254,691.85,690.55,0.28962421]
[1736554994934,0.79757507,691.79,690.55,0.28962421]
[1736554995235,0.79757507,691.78,690.55,0.28962421]
[1736554995439,0.79757507,691.77,690.55,0.28962421]
[1736554996238,1.07371254,691.85,690.55,0.28962421]
[1736554996239,0.79757507,691.84,690.55,0.28962421]
[1736554996642,0.79757507,691.83,690.55,0.28962421]
[1736554997135,0.79757507,691.82,690.55,0.28962421]
[1736554997533,0.79757507,691.81,690.55,0.28962421]
[1736554998141,0.79757507,691.84,690.55,0.28962421]
[1736554999139,0.79757507,691.88,690.55,0.28962421]
[1736554999537,0.79757507,691.87,690.55,0.28962421]
[1736555000234,0.79757507,691.86,690.55,0.28962421]
[1736555000641,0.79757507,691.88,690.55,0.28962421]
[1736555001141,0.79757507,691.87,690.55,0.28962421]
[1736555001538,0.79757507,691.86,690.55,0.28962421]
[1736555002239,0.79757507,691.85,690.55,0.28962421]
[1736555002837,0.79757507,691.88,690.55,0.28962421]
[1736555003241,0.79757507,691.87,690.55,0.28962421]
[1736555003746,0.79757507,691.86,690.55,0.28962421]
[1736555004243,0.79757507,691.88,690.55,0.28962421]
[1736555004441,0.79757507,691.87,690.55,0.28962421]
[1736555005143,0.79757507,691.86,690.55,0.28962421]
[1736555005943,0.79757507,691.88,690.55,0.28962421]
[1736555006145,0.79757507,691.87,690.55,0.28962421]
[1736555006541,0.79757507,691.88,690.55,0.28962421]
[1736555006942,0.79757507,691.87,690.55,0.28962421]
[1736555007543,0.79757507,691.88,690.55,0.28962421]
[1736555008040,0.79757507,691.87,690.55,0.28962421]